bitfinex/quotes_ETHUSD_20240916
["timestamp","ask_amount","ask_price","bid_price","bid_amount"]
[1726498048057,4.37713,2284.6,2284.3,2.4509]
[1726498048240,4.37713,2284.6,2284.5,0.08581867]
[1726498048448,4.37713,2284.6,2284.3,2.4509]
[1726498048640,4.37713,2284.6,2284.5,0.08581867]
[1726498048835,4.37751,2284.4,2284.3,2.4509]
[1726498049076,4.37751,2284.4,2283.8,4.37855]
[1726498049077,4.37751,2284.4,2284.0,2.3166]
[1726498050103,4.37772,2284.3,2284.0,2.3166]
[1726498050258,4.37751,2284.4,2284.0,2.3166]
[1726498050455,0.9865437,2284.4,2284.0,2.3166]
[1726498050706,7.37701,2284.7,2283.5,4.37917]
[1726498050707,4.37809,2284.1,2283.8,2.3347]
[1726498050860,4.378,2284.2,2283.8,2.3347]
[1726498051061,4.37813,2284.1,2283.8,2.3347]
[1726498051302,4.37828,2284.0,2283.8,2.3347]
[1726498051903,4.378,2284.2,2283.8,2.3347]
[1726498052059,8.75603,2284.2,2283.8,2.3347]
[1726498052259,4.3782,2284.1,2283.8,2.3347]
[1726498052863,4.37828,2284.0,2283.8,2.3347]
[1726498053724,4.378,2284.2,2283.8,2.3347]
[1726498054217,4.3782,2284.1,2283.8,2.3347]
[1726498054720,4.378,2284.2,2283.8,2.3347]
[1726498055080,4.37716,2284.6,2284.0,2.3814]
[1726498055298,4.37769,2284.4,2284.0,2.3814]
[1726498055518,4.37782,2284.3,2284.0,2.3814]
[1726498055818,4.37769,2284.4,2284.0,2.3814]
[1726498055819,4.37769,2284.4,2284.0,3.06115564]
[1726498055975,4.37774,2284.3,2284.0,3.06115564]
[1726498056379,4.37766,2284.4,2284.0,2.3814]
[1726498056690,4.3779,2284.2,2284.0,2.3814]
[1726498057715,4.37809,2284.1,2284.0,2.3814]
[1726498058119,4.37762,2284.4,2284.0,2.3814]
[1726498058322,8.75528,2284.4,2284.0,2.62330464]
[1726498058504,8.75528,2284.4,2284.0,2.3814]
[1726498058505,4.37791,2284.2,2284.0,2.3814]
[1726498058682,4.37762,2284.4,2284.0,2.3814]
[1726498059018,0.89619555,2284.5,2284.0,6.75956]
[1726498059019,4.37739,2284.5,2284.0,6.75956]
[1726498059238,5.27341555,2284.6,2284.0,6.75956]
[1726498059239,0.89619555,2284.6,2284.3,4.37767]
[1726498059381,6.1765363,2284.8,2284.2,2.4473]
[1726498059382,5.27304555,2284.8,2284.2,2.4473]
[1726498059579,9.64989555,2284.8,2284.3,4.37768]
[1726498059778,4.37716,2284.6,2284.2,2.4473]
[1726498060107,4.37733,2284.5,2284.2,2.4473]
[1726498060705,4.37756,2284.4,2284.2,2.4473]
[1726498060924,4.37733,2284.5,2284.2,2.4473]
[1726498061544,5.27318555,2284.7,2284.2,2.4473]
[1726498061731,5.27318555,2284.7,2283.9,0.0376464]
[1726498061732,0.89619555,2284.7,2284.4,6.79642]
[1726498062055,5.27284555,2284.9,2284.5,1.117401]
[1726498062200,0.89619555,2284.9,2284.6,0.7913911]
[1726498062541,4.37657,2284.9,2284.6,0.7913911]
[1726498062741,4.37657,2284.9,2284.5,5.494721]
[1726498062742,5.27276555,2284.9,2284.5,1.117401]
[1726498063096,0.89619555,2285.0,2284.5,5.494621]
[1726498063304,6.33882357,2285.0,2284.5,5.494621]
[1726498063595,6.33882357,2285.0,2284.5,9.871851]
[1726498063596,5.27265555,2285.0,2284.5,9.871851]
[1726498063797,0.89619555,2285.0,2284.7,4.3769]
[1726498063995,6.1757063,2285.2,2284.7,4.37685]
[1726498063996,0.89619555,2285.2,2284.7,4.37685]
[1726498064234,6.33824419,2285.2,2284.7,4.37684]
[1726498064452,5.27210555,2285.3,2284.7,4.37684]
[1726498064664,6.33786563,2285.2,2284.7,5.040544]
[1726498064838,5.27218555,2285.2,2284.7,9.417374]
[1726498065053,4.37599,2285.2,2284.7,5.040544]
[1726498065354,4.37599,2285.2,2284.8,4.37675]
[1726498065859,4.37599,2285.2,2284.9,2.4879]
[1726498067131,5.72536472,2285.4,2284.9,6.86435]
[1726498067132,5.27179555,2285.4,2284.9,6.86435]
[1726498067458,0.89619555,2285.5,2284.9,6.86433]
[1726498067616,4.37569,2285.4,2284.9,6.86433]
[1726498067815,5.27169555,2285.5,2284.9,12.364844]
[1726498068156,4.37562,2285.4,2285.0,0.07892579]
[1726498068735,4.3755,2285.5,2285.0,0.07892579]
[1726498068963,8.75107,2285.5,2285.0,5.26200977]
[1726498069870,4.3755,2285.5,2285.0,5.26200977]
[1726498070834,4.3755,2285.5,2285.0,0.88565977]
[1726498071163,4.37562,2285.4,2285.0,0.88565977]
[1726498071328,4.37562,2285.4,2285.1,0.53970115]
[1726498071739,4.37562,2285.4,2285.2,0.07891695]
[1726498072107,4.37579,2285.3,2285.2,0.07891695]
[1726498072433,4.37561,2285.4,2284.9,11.24076]
[1726498072776,4.37561,2285.4,2285.2,0.07891695]
[1726498072942,4.37561,2285.4,2285.0,0.68643]
[1726498073139,4.37561,2285.4,2285.3,0.07891695]
[1726498073343,4.37561,2285.4,2285.0,0.68643]
[1726498073563,4.37561,2285.4,2285.3,0.07815631]
[1726498074073,4.37561,2285.4,2285.0,0.68643]
[1726498074233,4.37561,2285.4,2285.3,0.07815631]
[1726498074587,4.37561,2285.4,2285.0,5.06278]
[1726498074746,4.3755,2285.5,2285.3,0.0779441]
[1726498074933,4.37568,2285.4,2285.2,2.3853]
[1726498075133,4.37612,2285.2,2284.8,2.3853]
[1726498075364,4.37617,2285.1,2284.8,2.3853]
[1726498075530,4.37617,2285.1,2284.8,4.239217]
[1726498076266,4.37617,2285.1,2284.8,2.3853]
[1726498076473,4.37651,2285.0,2284.8,2.3853]
[1726498076786,4.37651,2285.0,2284.6,7.4]
[1726498076787,4.37651,2285.0,2284.6,9.6742]
[1726498076937,4.37617,2285.1,2284.6,14.05131]
[1726498077152,4.37617,2285.1,2284.7,1.40515]
[1726498077460,8.75245,2285.1,2284.7,1.40515]
[1726498077660,4.3762,2285.1,2284.7,1.40515]
[1726498078176,4.3762,2285.1,2284.6,6.6512]
[1726498078473,8.75207,2285.2,2284.7,4.37692]
[1726498078649,8.75207,2285.2,2284.7,5.479732]
[1726498078971,8.75214,2285.2,2284.7,1.102812]
[1726498079177,4.376,2285.2,2284.7,5.479662]
[1726498079840,4.3762,2285.1,2284.7,1.102812]
[1726498080680,4.3765,2285.0,2284.7,1.102812]
[1726498080886,4.3762,2285.1,2284.6,2.2742]
[1726498081049,4.3762,2285.1,2284.6,6.65122]
[1726498081249,4.37606,2285.2,2284.6,2.2742]
[1726498081475,0.671155,2285.2,2284.6,2.2742]
[1726498081691,4.37773,2284.3,2284.0,2.4636]
[1726498082042,9.8891,2284.9,2284.0,2.4636]
[1726498082043,4.37677,2284.8,2284.0,2.4636]
[1726498082351,4.37677,2284.8,2283.9,0.0376464]
[1726498082352,4.37828,2284.0,2283.9,0.0376464]
[1726498082772,8.75656,2284.0,2283.9,0.0376464]
[1726498083169,4.37828,2284.0,2283.9,0.0376464]
[1726498083345,8.75656,2284.0,2283.9,0.0376464]
[1726498083570,8.75656,2284.0,2283.9,0.11323526]
[1726498083770,8.75656,2284.0,2283.9,0.0376464]
[1726498083974,8.75656,2284.0,2283.9,0.11496933]
[1726498084179,9.632216,2284.0,2283.9,0.0376464]
[1726498085199,9.632216,2284.0,2283.9,0.115049]
[1726498085405,8.75656,2284.0,2283.9,0.0376464]
[1726498085913,4.37828,2284.0,2283.9,0.0376464]
[1726498086269,4.37828,2284.0,2283.9,0.115049]
[1726498086783,8.75656,2284.0,2283.9,0.115049]
[1726498086987,9.632216,2284.0,2283.9,0.115049]
[1726498087223,8.75656,2284.0,2283.9,0.0376464]
[1726498087715,4.37828,2284.0,2283.9,0.0376464]
[1726498088118,4.37828,2284.0,2283.9,0.115049]
[1726498088322,4.37828,2284.0,2283.9,0.0376464]
[1726498088484,8.75656,2284.0,2283.9,0.0376464]
[1726498088813,4.37828,2284.0,2283.9,0.0376464]
[1726498089311,4.37828,2284.0,2283.9,0.115049]
[1726498089511,8.75646,2284.1,2283.9,0.115049]
[1726498089683,4.37822,2284.1,2283.9,0.115049]
[1726498089884,4.37805,2284.2,2283.9,2.474849]
[1726498090312,4.37805,2284.2,2283.9,2.7223339]
[1726498090517,4.37828,2284.0,2283.9,0.115049]
[1726498090703,8.75656,2284.0,2283.9,0.115049]
[1726498091223,10.302517,2284.0,2283.9,0.115049]
[1726498091377,10.302517,2284.0,2283.9,0.0376464]
[1726498092719,17.680797,2284.0,2283.9,0.0376464]
[1726498093271,24.487477,2284.0,2283.9,0.0376464]
[1726498093574,24.487477,2284.0,2283.2,0.0376464]
[1726498093576,4.37962,2283.3,2283.2,0.0376464]
[1726498093972,4.3795,2283.4,2283.2,0.0376464]
[1726498093973,8.75904,2283.4,2283.2,0.1126811]
[1726498094201,4.3795,2283.4,2283.2,0.0376464]
[1726498094471,8.75924,2283.3,2283.2,0.0376464]
[1726498095270,4.37962,2283.3,2283.2,0.0376464]
[1726498096541,8.75924,2283.3,2283.2,0.0376464]
[1726498097581,4.37962,2283.3,2283.2,0.0376464]
[1726498098093,4.37962,2283.3,2283.2,0.11361973]
[1726498099586,8.75924,2283.3,2283.2,0.11361973]
[1726498099788,4.37962,2283.3,2283.2,0.11361973]
[1726498100289,4.37955,2283.4,2283.2,0.11361973]
[1726498100493,4.37962,2283.3,2283.2,0.11361973]
[1726498101627,4.37954,2283.4,2283.2,0.11361973]
[1726498101828,4.37925,2283.5,2283.3,2.261]
[1726498102036,4.37914,2283.6,2283.3,2.261]
[1726498102037,4.37943,2283.4,2283.3,2.261]
[1726498102339,4.37914,2283.6,2283.4,0.07592018]
[1726498102489,4.3788,2283.8,2283.4,0.23745666]
[1726498102695,7.47,2284.2,2283.5,0.07592018]
[1726498102939,7.47,2284.2,2283.5,1.20924886]
[1726498103102,4.37905,2283.6,2283.5,0.07592018]
[1726498103290,4.37924,2283.5,2283.2,0.0376464]
[1726498103731,4.37901,2283.7,2283.3,0.07583161]
[1726498103943,4.37862,2283.9,2283.2,0.0376464]
[1726498104091,4.37862,2283.9,2283.4,0.0757519]
[1726498104436,4.37862,2283.9,2283.4,0.68866283]
[1726498104638,4.37824,2284.1,2283.6,2.3879]
[1726498104936,8.7581,2283.6,2283.5,0.0757519]
[1726498105146,4.37962,2283.3,2283.2,0.0376464]
[1726498105428,9.197202,2283.3,2283.2,0.0376464]
[1726498106415,11.534102,2283.3,2283.2,0.0376464]
[1726498107804,8.75924,2283.3,2283.2,0.0376464]
[1726498108403,4.37962,2283.3,2283.2,0.0376464]
[1726498108857,8.75924,2283.3,2283.2,0.0376464]
[1726498110633,13.13886,2283.3,2283.2,0.0376464]
[1726498110820,18.44906,2283.3,2283.2,0.0376464]
[1726498111018,15.03699819,2283.3,2283.2,0.0376464]
[1726498111446,11.75924,2283.3,2283.2,0.0376464]
[1726498114091,4.37962,2283.3,2283.2,0.0376464]
[1726498114375,8.75924,2283.3,2283.2,0.10870344]
[1726498114676,4.37962,2283.3,2283.2,0.10870344]
[1726498115433,4.37934,2283.5,2283.2,0.10870344]
[1726498115740,4.37943,2283.4,2283.2,0.10870344]
[1726498116079,4.37962,2283.3,2283.2,0.10870344]
[1726498117041,8.75924,2283.3,2283.2,0.10870344]
[1726498117292,9.635145,2283.3,2283.2,0.0376464]
[1726498117571,8.75924,2283.3,2283.2,0.0376464]
[1726498117782,13.13886,2283.3,2283.2,0.0376464]
[1726498118277,18.40146,2283.3,2283.2,0.0376464]
[1726498118476,11.75924,2283.3,2283.2,0.0376464]
[1726498118691,13.373093,2283.3,2283.2,0.0376464]
[1726498118979,20.220113,2283.3,2283.2,0.0376464]
[1726498119954,24.599733,2283.3,2283.2,0.0376464]
[1726498121293,20.220113,2283.3,2283.2,0.0376464]
[1726498122803,24.599733,2283.3,2283.2,0.0376464]
[1726498123293,32.35003844,2283.3,2283.2,0.0016247]
[1726498124094,31.90096726,2283.3,2283.2,0.0016247]
[1726498124305,36.72965844,2283.3,2283.2,0.0016247]
[1726498124456,36.72965844,2283.3,2282.5,2.3604464]
[1726498124457,16.14288,2282.6,2282.5,0.0376464]
[1726498124659,18.61238,2282.6,2282.5,0.0376464]
[1726498124890,21.29520964,2282.6,2282.5,0.0376464]
[1726498125199,30.7457022,2282.6,2282.5,0.0376464]
[1726498125402,30.7457022,2282.6,2281.8,2.4200464]
[1726498125403,13.14693,2281.9,2281.8,0.0376464]
[1726498125601,18.61643,2281.9,2281.8,0.0376464]
[1726498125758,14.23412,2281.9,2281.8,0.0376464]
[1726498125952,11.76462,2281.9,2281.8,0.0376464]
[1726498126158,16.14693,2281.9,2281.8,0.0376464]
[1726498126358,16.68545919,2281.9,2281.8,0.0376464]
[1726498127177,16.14693,2281.9,2281.8,0.0376464]
[1726498127490,11.76462,2281.9,2281.8,0.0376464]
[1726498127659,16.14693,2281.9,2281.8,0.0376464]
[1726498128086,11.76462,2281.9,2281.8,0.0376464]
[1726498128703,16.14693,2281.9,2281.8,0.0376464]
[1726498128862,17.761623,2281.9,2281.8,0.0376464]
[1726498129685,20.099323,2281.9,2281.8,0.0376464]
[1726498130604,24.481633,2281.9,2281.8,0.0376464]
[1726498131200,24.481633,2281.9,2280.8,2.2849]
[1726498131201,13.15038,2281.3,2280.8,2.2849]
[1726498131368,13.15038,2281.3,2280.6,2.2849]
[1726498131369,19.10386919,2281.3,2280.6,2.2849]
[1726498131566,12.30460919,2281.3,2280.6,2.2849]
[1726498131795,12.30460919,2281.3,2280.5,0.0376464]
[1726498131796,8.76692,2281.3,2281.1,2.485]
[1726498132182,3.0,2281.6,2281.1,2.485]
[1726498132183,4.38327,2281.4,2281.1,2.485]
[1726498132370,4.38346,2281.3,2281.2,0.10231411]
[1726498132764,8.76692,2281.3,2281.2,0.10231411]
[1726498133310,8.76692,2281.3,2281.2,0.10233186]
[1726498133462,8.76692,2281.3,2281.2,0.0376464]
[1726498133805,17.710633,2281.3,2281.2,0.0376464]
[1726498136323,22.094093,2281.3,2281.2,0.0376464]
[1726498137422,17.710633,2281.3,2281.2,0.0376464]
[1726498137639,16.15038,2281.3,2281.2,0.0376464]
[1726498138506,11.76692,2281.3,2281.2,0.0376464]
[1726498138715,11.76692,2281.3,2281.2,0.10368016]
[1726498139406,4.38346,2281.3,2281.2,0.10368016]
[1726498139609,8.76692,2281.3,2281.2,0.10368016]
[1726498140010,4.38346,2281.3,2281.2,0.10368016]
[1726498140209,5.353,2281.7,2281.2,0.0376464]
[1726498140210,4.38337,2281.4,2281.2,0.0376464]
[1726498140526,4.38304,2281.6,2281.2,0.36069456]
[1726498140741,4.38301,2281.6,2281.3,2.4515]
[1726498140874,4.38301,2281.6,2281.3,2.51770238]
[1726498141080,4.38308,2281.5,2281.3,2.51770238]
[1726498141412,4.38222,2282.0,2281.4,2.3392]
[1726498141413,4.38233,2281.9,2281.4,2.3392]
[1726498141624,4.38252,2281.8,2281.4,2.3392]
[1726498141780,4.38252,2281.8,2281.5,0.74487838]
[1726498141981,4.38252,2281.8,2281.5,0.06600714]
[1726498142180,4.38231,2281.9,2281.5,0.06600714]
[1726498142417,4.38231,2281.9,2281.6,2.3014]
[1726498142822,4.3825,2281.8,2281.6,2.3014]
[1726498143037,11.85185,2282.2,2281.8,2.2756]
[1726498143179,16.23373,2282.2,2281.9,0.23416071]
[1726498143382,8.76373,2282.2,2281.9,0.23416071]
[1726498143626,4.38185,2282.2,2281.9,0.23416071]
[1726498143827,4.38185,2282.2,2282.0,0.06600714]
[1726498144032,4.3814,2282.4,2282.0,0.06600714]
[1726498144195,4.38165,2282.3,2282.0,0.06600714]
[1726498144390,4.38173,2282.2,2281.9,0.23416071]
[1726498144708,4.38173,2282.2,2282.0,2.5381305]
[1726498144890,4.3814,2282.4,2282.0,2.5381305]
[1726498144891,8.76294,2282.4,2282.0,2.5381305]
[1726498145085,4.38109,2282.6,2282.0,2.5381305]
[1726498145286,4.38106,2282.6,2282.2,2.4274]
[1726498145503,7.47,2282.7,2282.2,6.80913]
[1726498145504,11.85092,2282.7,2282.2,6.80913]
[1726498145789,4.3807,2282.8,2282.4,2.4274]
[1726498146090,7.47,2283.1,2282.6,4.38085]
[1726498146289,7.47,2283.1,2282.1,4.64447724]
[1726498146290,4.38021,2283.0,2282.7,2.3488]
[1726498146615,4.38021,2283.0,2282.7,3.09331557]
[1726498146931,4.37954,2283.4,2282.9,2.4238]
[1726498147131,8.75908,2283.4,2282.9,2.4238]
[1726498147378,8.75909,2283.4,2283.0,0.06469466]
[1726498147503,4.37954,2283.4,2283.0,0.75159113]
[1726498147839,11.84934,2283.5,2283.1,2.4238]
[1726498148043,8.75834,2283.6,2283.1,2.4238]
[1726498148333,4.37914,2283.6,2283.2,0.06439339]
[1726498148690,4.37887,2283.7,2283.2,0.06439339]
[1726498148890,0.49527245,2283.9,2283.3,2.2978]
[1726498148891,4.3788,2283.8,2283.3,2.2978]
[1726498149236,0.0376464,2283.9,2283.3,2.36029566]
[1726498149388,0.0376464,2283.9,2283.5,4.37923]
[1726498149590,0.0376464,2283.9,2283.6,2.54237848]
[1726498149825,0.0376464,2283.9,2283.8,2.4548]
[1726498150238,0.0376464,2283.9,2283.8,2.51672881]
[1726498150239,4.4161164,2283.9,2283.8,2.51672881]
[1726498150403,9.67401704,2283.9,2283.8,0.06192881]
[1726498150586,8.7945864,2283.9,2283.8,0.06192881]
[1726498150930,8.7945864,2283.9,2283.6,2.2694]
[1726498150931,4.37885,2283.7,2283.6,2.2694]
[1726498151107,4.3787,2283.8,2283.0,2.4256]
[1726498151290,2.4052464,2283.9,2283.0,2.863628]
[1726498151493,4.37949,2283.4,2283.0,2.4256]
[1726498151907,2.4052464,2283.9,2283.3,2.4731]
[1726498151908,4.37877,2283.8,2283.3,2.4731]
[1726498152141,4.3789,2283.7,2283.3,2.4731]
[1726498152294,4.37877,2283.8,2283.3,6.85266]
[1726498152495,0.0376464,2283.9,2283.5,2.4731]
[1726498152925,0.0376464,2283.9,2283.5,6.85223]
[1726498153235,4.4161364,2283.9,2283.5,2.4731]
[1726498153590,0.0376464,2283.9,2283.5,2.4731]
[1726498153791,4.37867,2283.8,2283.6,1.123174]
[1726498153990,4.37867,2283.8,2283.5,2.4731]
[1726498153991,0.0376464,2283.9,2283.5,2.4731]
[1726498154234,4.4161664,2283.9,2283.5,2.4731]
[1726498154391,4.4161664,2283.9,2283.5,3.5963]
[1726498154592,0.0376464,2283.9,2283.5,3.5963]
[1726498154809,4.4162764,2283.9,2283.5,3.5963]
[1726498155021,0.0376464,2283.9,2283.5,3.5963]
[1726498155238,0.0376464,2283.9,2283.6,4.37891]
[1726498155397,0.0376464,2283.9,2283.7,2.3204]
[1726498155599,0.0376464,2283.9,2283.8,6.69906]
[1726498156197,0.0376464,2283.9,2283.8,11.07772]
[1726498156748,0.0376464,2283.9,2283.8,6.69906]
[1726498157038,0.0376464,2283.9,2283.8,7.368966]
[1726498157243,0.0376464,2283.9,2283.8,11.747626]
[1726498158238,0.0376464,2283.9,2283.8,7.43082397]
[1726498159059,0.0376464,2283.9,2283.8,3.05216397]
[1726498159258,0.0376464,2283.9,2283.8,7.43082397]
[1726498159562,0.0376464,2283.9,2283.8,3.05216397]
[1726498159770,0.0376464,2283.9,2283.8,0.06185797]
[1726498159950,4.4161164,2283.9,2283.5,2.2805]
[1726498160162,4.37878,2283.8,2283.5,2.2805]
[1726498160469,4.37872,2283.8,2283.5,2.2805]
[1726498160620,4.37896,2283.7,2283.2,2.4493]
[1726498160819,4.37872,2283.8,2283.2,8.007098]
[1726498161258,8.75755,2283.8,2283.3,4.37961]
[1726498161465,8.75755,2283.8,2283.4,0.8006898]
[1726498161466,4.37906,2283.6,2283.4,0.8006898]
[1726498161666,4.37872,2283.8,2283.2,3.627288]
[1726498161667,4.37887,2283.7,2283.2,3.627288]
[1726498161978,4.37887,2283.7,2283.3,1.5407158]
[1726498162259,4.37919,2283.6,2283.3,1.5407158]
[1726498162492,4.37887,2283.7,2283.3,1.5407158]
[1726498162657,8.7948364,2283.9,2283.3,1.5407158]
[1726498162861,4.4162164,2283.9,2283.4,0.83697958]
[1726498163176,4.37887,2283.7,2283.4,0.83697958]
[1726498163487,4.37868,2283.8,2283.4,0.83697958]
[1726498163690,4.4162464,2283.9,2283.5,0.67573054]
[1726498163860,0.0376464,2283.9,2283.6,2.3338]
[1726498164071,0.0376464,2283.9,2283.6,6.71275]
[1726498164259,0.0376464,2283.9,2283.7,1.17676205]
[1726498164595,0.0376464,2283.9,2283.8,4.37866]
[1726498164883,0.0376464,2283.9,2283.8,2.3316]
[1726498165090,0.0376464,2283.9,2283.8,6.71026]
[1726498165795,0.0376464,2283.9,2283.8,11.08892]
[1726498166668,0.0376464,2283.9,2283.8,6.71026]
[1726498166957,0.0376464,2283.9,2283.8,11.759946]
[1726498167877,0.0376464,2283.9,2283.8,7.381286]
[1726498168048,0.0376464,2283.9,2283.8,11.759946]
[1726498169464,0.0376464,2283.9,2283.8,7.381286]
[1726498170621,0.0376464,2283.9,2283.8,11.759946]
[1726498173034,0.0376464,2283.9,2283.8,11.8203519]
[1726498173457,0.0376464,2283.9,2283.8,7.4416919]
[1726498173669,0.0376464,2283.9,2283.8,11.8203519]
[1726498175074,0.0376464,2283.9,2283.8,19.1990119]
[1726498175423,0.0376464,2283.9,2283.8,23.5776719]
[1726498176168,0.0376464,2283.9,2283.8,29.42009357]
[1726498176335,0.0376464,2283.9,2283.8,25.04143357]
[1726498177339,0.0376464,2283.9,2283.8,29.42009357]
[1726498178167,0.0376464,2284.6,2284.5,14.11024]
[1726498178366,0.0376464,2284.6,2284.5,18.48756]
[1726498178565,0.0376464,2284.6,2284.5,18.54701032]
[1726498178877,0.0376464,2284.6,2284.5,27.30165032]
[1726498179673,0.0376464,2284.6,2284.5,22.92433032]
[1726498179885,0.0376464,2285.2,2285.1,18.48171]
[1726498180167,0.0376464,2285.2,2285.1,14.16464546]
[1726498185024,0.0376464,2285.2,2285.1,18.54081546]
[1726498185224,0.0376464,2285.2,2285.1,14.16464546]
[1726498185439,0.0376464,2285.2,2285.1,16.01874401]
[1726498191784,0.0376464,2285.2,2285.1,20.39491401]
[1726498192081,0.0376464,2285.2,2285.1,26.23733568]
[1726498192286,0.0376464,2285.2,2285.1,30.61350568]
[1726498193942,0.0376464,2285.2,2285.1,26.23733568]
[1726498194170,0.0376464,2285.2,2285.1,20.39491401]
[1726498194576,0.0376464,2285.2,2285.1,13.01874401]
[1726498196048,0.0376464,2285.2,2285.1,16.01874401]
[1726498197592,0.0376464,2285.2,2285.1,6.28937401]
[1726498197790,0.0376464,2285.2,2285.1,4.43527546]
[1726498198956,0.0376464,2285.2,2285.1,8.81144546]
[1726498200055,0.0376464,2285.2,2285.1,16.55568685]
[1726498200495,0.0376464,2285.2,2285.1,18.92068685]
[1726498200659,0.0376464,2285.2,2285.1,14.17644546]
[1726498200855,0.0376464,2285.2,2285.1,6.32734415]
[1726498201096,0.0376464,2285.2,2285.1,4.43527546]
[1726498201405,0.0376464,2285.2,2285.1,8.81144546]
[1726498201562,0.0376464,2285.2,2285.1,4.43527546]
[1726498201953,0.0376464,2285.2,2285.1,0.05910546]
[1726498202158,0.0376464,2285.2,2285.1,4.43527546]
[1726498202366,0.0376464,2285.2,2285.1,0.05910546]
[1726498202656,0.0376464,2285.2,2284.8,7.3766]
[1726498202657,0.0376464,2285.2,2284.8,3.0]
[1726498202862,6.7041864,2285.2,2285.1,0.04965932]
[1726498203159,6.7041864,2285.2,2285.1,0.04800705]
[1726498203160,2.3280464,2285.2,2285.1,0.04800705]
[1726498203412,0.0376464,2285.2,2285.1,4.37617]
[1726498203606,0.0376464,2285.2,2285.1,4.86190883]
[1726498203823,0.0376464,2285.2,2285.1,9.32558668]
[1726498204227,0.0376464,2285.2,2285.1,16.61424883]
[1726498204427,0.0376464,2285.2,2285.1,12.23807883]
[1726498204715,0.0376464,2285.2,2285.1,16.61424883]
[1726498205074,0.0376464,2285.2,2285.1,12.23807883]
[1726498205273,0.0376464,2285.2,2285.1,16.61424883]
[1726498205718,0.0376464,2285.2,2285.1,12.23807883]
[1726498205891,0.0376464,2285.2,2285.1,4.86190883]
[1726498206095,0.0376464,2285.2,2285.1,0.04812183]
[1726498206419,0.0376464,2285.2,2285.1,14.24336183]
[1726498206721,0.0376464,2285.2,2285.1,18.61953183]
[1726498208176,0.0376464,2285.2,2285.1,22.99570183]
[1726498208406,0.0376464,2285.2,2285.1,27.37187183]
[1726498208720,0.0376464,2285.9,2285.8,18.56739]
[1726498208896,0.0376464,2285.9,2285.8,23.31163139]
[1726498209073,0.0376464,2285.9,2285.8,23.35784492]
[1726498209279,0.0376464,2285.9,2285.8,27.73267492]
[1726498209571,0.0376464,2285.9,2285.8,26.56863141]
[1726498209817,0.0376464,2285.9,2285.8,30.94346141]
[1726498210187,0.0376464,2285.9,2285.8,26.56863141]
[1726498210628,0.0376464,2285.9,2285.8,27.65665046]
[1726498211090,0.0376464,2285.9,2285.8,32.03148046]
[1726498211417,0.0376464,2285.9,2285.8,27.65665046]
[1726498212208,0.0376464,2285.9,2285.8,21.82439002]
[1726498212718,0.0376464,2285.9,2285.8,27.65665046]
[1726498213809,0.0376464,2285.9,2285.8,17.44956002]
[1726498214121,0.0376464,2285.9,2285.8,12.00666002]
[1726498214330,0.0376464,2285.9,2285.8,8.79587353]
[1726498214479,0.0376464,2285.9,2285.8,4.42104353]
[1726498215718,0.0376464,2285.9,2285.8,11.79587353]
[1726498216304,0.0376464,2285.9,2285.8,24.42276397]
[1726498216502,0.0376464,2285.9,2285.8,26.86504037]
[1726498216816,0.0376464,2285.9,2285.8,31.23987037]
[1726498219501,0.0376464,2285.9,2285.8,35.61470037]
[1726498219702,0.0376464,2286.6,2285.8,35.61470037]
[1726498219703,0.0376464,2286.6,2286.5,16.12047]
[1726498219922,0.0376464,2286.6,2286.5,17.968117]
[1726498220222,0.0376464,2286.6,2286.5,13.63652869]
[1726498221084,0.0376464,2286.6,2286.5,18.01001869]
[1726498221287,0.0376464,2286.6,2286.5,22.38350869]
[1726498221623,0.0376464,2286.6,2286.5,18.01001869]
[1726498221803,0.0376464,2286.6,2286.5,22.38350869]
[1726498222008,0.0376464,2286.6,2286.5,29.06009869]
[1726498222202,0.0376464,2287.3,2287.2,8.7443]
[1726498222427,0.0376464,2287.3,2287.2,11.7443]
[1726498222721,0.0376464,2287.3,2287.2,11.78567294]
[1726498223315,0.0376464,2287.3,2287.2,7.41352294]
[1726498223653,0.0376464,2287.3,2287.2,11.87310167]
[1726498223926,0.0376464,2287.3,2287.2,12.97298311]
[1726498228242,0.0376464,2287.3,2287.2,17.34513311]
[1726498228419,0.0376464,2287.3,2287.2,19.68243311]
[1726498229035,0.0376464,2287.3,2287.2,15.31028311]
[1726498229206,0.0376464,2287.3,2287.2,19.68243311]
[1726498229733,0.0376464,2287.3,2287.2,25.51469355]
[1726498230444,0.0376464,2287.3,2287.2,29.88684355]
[1726498231008,0.0376464,2287.3,2287.2,34.69769355]
[1726498231212,0.0376464,2287.3,2287.2,30.32554355]
[1726498231516,0.0376464,2287.3,2287.2,34.25899355]
[1726498231994,0.0376464,2287.3,2287.2,29.92976178]
[1726498232793,0.0376464,2287.3,2287.2,34.30191178]
[1726498232998,0.0376464,2287.3,2287.2,29.92976178]
[1726498234336,0.0376464,2287.3,2287.2,28.82957046]
[1726498235517,0.0376464,2287.3,2287.2,33.64042046]
[1726498235757,0.0376464,2288.0,2287.2,33.64042046]
[1726498235758,0.0376464,2288.0,2287.9,8.74164]
[1726498235895,0.0376464,2288.0,2287.9,16.11246]
[1726498236339,0.0376464,2288.0,2287.9,11.8254999]
[1726498236808,2.4429,2288.4,2287.9,11.8254999]
[1726498236809,2.4429,2288.4,2288.2,4.37012]
[1726498237010,2.48235,2288.4,2288.3,4.37005]
[1726498237240,2.48235,2288.4,2288.3,4.4538571]
[1726498238731,2.48235,2288.4,2288.3,0.0838071]
[1726498238927,2.48235,2288.4,2288.3,4.37005]
[1726498239128,2.48235,2288.4,2288.3,4.807055]
[1726498239328,2.48235,2288.4,2288.3,4.89010518]
[1726498239527,2.48235,2288.4,2288.3,9.26015518]
[1726498239841,0.0411522,2288.9,2288.8,4.3691]
[1726498240052,0.0411522,2288.9,2288.8,9.17511]
[1726498240205,0.0411522,2288.9,2288.8,0.08301498]
[1726498240408,0.0411522,2288.9,2288.6,8.73869]
[1726498240409,2.5250522,2288.9,2288.6,4.36931]
[1726498240727,2.5250522,2288.9,2288.8,0.08299739]
[1726498240929,2.5250522,2288.9,2288.6,4.36933]
[1726498241128,2.5250522,2288.9,2288.8,0.08299739]
[1726498241444,2.5250522,2288.9,2288.8,4.45209739]
[1726498241824,2.5250522,2288.9,2288.8,4.3691]